Cogmind - Beta 12 @@@ ROGUE MODE // 2023.04.17 @ 17:16:13 Player: Red Box Result: Destroyed by D-53 Grenadier with Mini Grenade Launcher Performance ------------- Evolutions (0) 0 Regions Visited (2) 400 Robots Destroyed (21) 105 Value Destroyed (429) 429 Prototype IDs (3) 60 Alien Tech Used (0) 0 Bonus (0) 0 TOTAL SCORE: 994 Bonus ------- None Cogmind --------- Core Integrity 0/250 Matter 280/300 Energy 50/100 System Corruption 0% Temperature Cool (0) Movement Treading (160) Location -10/Mines Parts ------- > --- POWER (1) -------- (None) > --- PROPULSION (2) --- Light Treads > --- UTILITY (2) ------ Large Storage Unit > --- WEAPON (2) ------- (None) > --- INVENTORY (15) --- Ion Engine Wheel Wheel Wheel Compact Wheel High-capacity Battery (250) High-capacity Matter Pod (200) EM Pulse Gun Beam Cannon Hammer Peak State ------------ > --- POWER ------------ Light Nuclear Core > --- PROPULSION ------- Wheel Compact Wheel > --- UTILITY ---------- Large Storage Unit Improved Terrain Scanner > --- WEAPON ----------- Particle Gun Assault Rifle > --- INVENTORY -------- Light Treads Light Treads Wheel Wheel Wheel Wheel High-capacity Battery High-capacity Matter Pod Medium Laser Beam Cannon Grenade Launcher Mining Laser [Rating: 13] Favorites ----------- Power Light Nuclear Core Engine Ion Engine Power Core Light Nuclear Core Propulsion Compact Wheel Treads Light Treads Leg Aluminum Leg Wheel Compact Wheel Utility Large Storage Unit Device Improved Terrain Scanner Storage Large Storage Unit Weapon EM Pulse Gun Energy Gun EM Pulse Gun Ballistic Gun Assault Rifle Launcher Rocket Launcher Impact Weapon Hammer Build | -11 -10 -10 ------- Run | Jun Mat Min Slots Evolved . | . . . Power . | . . . Propulsion . | . . . Utility . | . . . Weapon . | . . . Parts Attached 31 | 10 10 11 Power 4 | 1 1 2 Engine 3 | 1 . 2 Core 1 | . 1 . Reactor . | . . . Propulsion 11 | 5 4 2 Treads 2 | . . 2 Leg 2 | 2 . . Wheel 7 | 3 4 . Hover . | . . . Flight . | . . . Utility 4 | 2 1 1 Device 2 | 1 . 1 Storage 2 | 1 1 . Processor . | . . . Hackware . | . . . Protection . | . . . Artifact . | . . . Weapon 12 | 2 4 6 Energy Gun 8 | . 4 4 Energy Cannon . | . . . Ballistic Gun 2 | 2 . . Ballistic Cannon . | . . . Launcher 1 | . . 1 Special Weapon . | . . . Impact Weapon 1 | . . 1 Slashing Weapon . | . . . Piercing Weapon . | . . . Special Melee Weapon . | . . . Unidentified Prototypes . | . . . Parts Lost 13 | . 3 10 Power 2 | . 1 1 Propulsion 3 | . 1 2 Utility 2 | . . 2 Weapon 6 | . 1 5 Highest Loss Streak 7 | . 2 7 To Critical Strikes 1 | . 1 . Average Slot Usage (%) 98 | . 99 97 Engine 4 | . 3 4 Core 9 | . 9 8 Wheel 27 | . 27 27 Device 13 | . 14 13 Storage 14 | . 14 14 Energy Gun 21 | . 17 26 Ballistic Gun 6 | . 10 . Naked Turns . | . . . Heaviest Build 31 | 15 31 30 Greatest Support 40 | 20 32 40 Greatest Overweight (x) 1 | 1 1 1 Average Overweight (x) . | . . . Largest Inventory Capacity 15 | 8 15 15 Average Capacity 14 | 7 14 15 Most Carried 15 | 8 15 15 Average Carried 13 | 6 13 14 Final Capacity 15 | 8 15 15 Final Carried 15 | 8 15 10 Class Distribution -------------------- 78% | Mutant 21% | Scavenger-Mutant Dominant Class ---------------- Mutant | -10/Materials Mutant | -10/Mines Resources | -11 -10 -10 ----------- Run | Jun Mat Min Matter Collected 855 | 327 456 72 Remotely . | . . . Salvage Created 729 | 176 273 280 Parts 49 | 11 29 9 Haulers Intercepted . | . . . Recyclers Shooed 1 | . . 1 Parts Field Recycled . | . . . Retrieved Matter . | . . . Parts Self-Destructed . | . . . Prevented . | . . . Kills | -11 -10 -10 ------- Run | Jun Mat Min Combat Hostiles Destroyed 19 | . 9 10 Guns 16 | . 9 7 AOE 3 | . . 3 Classes Destroyed 6 | 2 3 1 Tunneler 4 | 4 . . Recycler 1 | 1 . . Watcher 3 | . 3 . Swarmer 6 | . 6 . Grunt 7 | . 3 4 Assembled 6 | . . 6 Best Kill Streak 6 | 3 3 6 Combat Bots Only 6 | . 3 6 Max Kills in Single Turn 2 | 1 1 2 Gunslinging . | . . . Exploded 2 | . . 2 Melee . | . . . Uniques/NPCs Destroyed . | . . . Combat | -11 -10 -10 -------- Run | Jun Mat Min Damage Taken 1248 | . 323 925 Core 260 | . 91 169 Absorbed by Shields . | . . . Core Remaining (%) 100 | 100 . . Volleys Fired 64 | 10 31 23 Largest 2 | 2 2 2 Hottest 115 | 40 115 80 Shots Fired 126 | 20 62 44 Gun 124 | 20 62 42 Cannon . | . . . Launcher 2 | . . 2 Special . | . . . Kinetic 69 | 20 49 . Thermal 7 | . 7 . Explosive 2 | . . 2 Electromagnetic 48 | . 6 42 Robot Hit Streak 8 | 3 8 6 Robot Miss Streak 3 | 3 2 2 Penetration Max . | . . . Secondary Targets 2 | . 1 1 Max Gunslinging Chain 1 | . 1 1 Shots Hit Robots 74 | 10 36 28 Core Hits 44 | 6 16 22 Critical Kills . | . . . Critical Parts Destroyed . | . . . Critical Strikes 1 | . 1 . Corrupt 1 | . 1 . Melee Attacks . | . . . Impact . | . . . Slashing . | . . . Piercing . | . . . Sneak Attacks . | . . . Combat Hostiles . | . . . Follow-up Attacks . | . . . Damage Inflicted 1089 | 125 477 487 Guns 961 | 125 477 359 Cannons . | . . . Explosions 127 | . . 127 Melee . | . . . Ramming 1 | . . 1 Kinetic 510 | 125 385 . Thermal 28 | . 28 . Explosive 127 | . . 127 Electromagnetic 423 | . 64 359 Impact . | . . . Slashing . | . . . Piercing . | . . . Highest Corruption . | . . . Average Corruption . | . . . Corruption Purged . | . . . Corruption Blocked . | . . . Overload Shots . | . . . Overflow Damage 1 | . . 1 Projectiles . | . . . Explosions 1 | . . 1 Melee . | . . . Knockbacks . | . . . Impact . | . . . Kinetic . | . . . Secondary . | . . . Self-Inflicted Damage 70 | . . 70 Shots 2 | . . 2 Rammed 1 | . . 1 Targets Rammed 1 | . . 1 Kicked . | . . . Crushed . | . . . Highest Temperature 166 | . 132 166 Average Temperature 46 | . 30 56 Received Heat Transfer 280 | . 102 178 Siege Activations . | . . . Robots Corrupted . | . . . Combat Hostiles . | . . . Parts Fried 1 | . . 1 Impact Corruptions . | . . . Robots Melted . | . . . Combat Hostiles . | . . . Parts Melted . | . . . Heat Transferred 74 | . 74 . Parts Sabotaged . | . . . Parts Stolen . | . . . Parts Stripped . | . . . Power Chain Reactions . | . . . Missiles Intercepted . | . . . Alert | -11 -10 -10 ------- Run | Jun Mat Min Peak Influence 227 | 25 227 60 Initial 25 | . 16 25 Average 62 | 12 96 27 Maximum Alert Level 1 | . 1 . Low Security (%) 92 | 100 86 100 Level 1 7 | . 13 . Level 2 . | . . . Level 3 . | . . . Level 4 . | . . . Level 5 . | . . . High Security . | . . . Max Security . | . . . Squads Dispatched 2 | . 2 . Investigation 2 | . 2 . Extermination . | . . . Reinforcement . | . . . Assault . | . . . Garrison . | . . . Intercept . | . . . Searches Triggered . | . . . Construction Impeded . | . . . Haulers Reinforced . | . . . Active Scanning Responses . | . . . Cargo Convoy Interrupts . | . . . Stealth | -11 -10 -10 --------- Run | Jun Mat Min Distress Signals . | . . . Communications Jammed . | . . . Distress Signals . | . . . Times Spotted 32 | . 12 20 Peak Tracking Total 8 | . 3 8 Tactical Retreats . | . . . Traps | -11 -10 -10 ------- Run | Jun Mat Min Traps Triggered 1 | . 1 . Indirectly . | . . . Trap Hack Attempts . | . . . Triggered . | . . . Disarmed . | . . . Reprogrammed 3 | . 3 . Reused . | . . . Traps Extracted . | . . . Installed . | . . . Triggered . | . . . Machines | -11 -10 -10 ---------- Run | Jun Mat Min Machines Disabled 1 | . 1 . Max in Single Turn 1 | . 1 . Machines Repaired . | . . . Machines Sabotaged . | . . . Overloaded Fab Kills . | . . . Hacking | -11 -10 -10 --------- Run | Jun Mat Min Machines Accessed 12 | . 11 1 Terminals 9 | . 8 1 Fabricators . | . . . Repair Stations 1 | . 1 . Recycling Units 2 | . 2 . Scanalyzers . | . . . Garrison Access . | . . . Total Hacks 34 | . 32 2 Successful 18 | . 17 1 Failed 15 | . 14 1 Catastrophic 4 | . 3 1 Database Lockouts 1 | . 1 . Manual 23 | . 21 2 Terminals 24 | . 22 2 Fabricators . | . . . Repair Stations 2 | . 2 . Recycling Units 8 | . 8 . Scanalyzers . | . . . Garrison Access . | . . . Terminal Hacks 6 | . 5 1 Robot Analysis 2 | . 1 1 Prototype ID Bank 1 | . 1 . Locate Traps 2 | . 2 . Reprogram Traps 1 | . 1 . Fabricator Hacks . | . . . Repair Station Hacks 1 | . 1 . Scan Component 1 | . 1 . Recycling Unit Hacks 2 | . 2 . Report Inventory 2 | . 2 . Scanalyzer . | . . . Garrison Access Hacks . | . . . Unauthorized Hacks 9 | . 9 . Terminals 5 | . 5 . Botnet 4 | . 4 . Operators 1 | . 1 . Fabricators . | . . . Repair Stations . | . . . Recycling Units 4 | . 4 . Reject 1 | . 1 . Recyclers 1 | . 1 . Mask 1 | . 1 . Tunnel 1 | . 1 . Scanalyzers . | . . . Garrison Access . | . . . Data Cores Recovered . | . . . Used . | . . . Hacking Detections 10 | . 9 1 Full Trace Events 2 | . 1 1 Feedback Events . | . . . Feedback Blocked . | . . . Robot Schematics Acquired . | . . . Robots Built . | . . . Authchips . | . . . Time . | . . . Total Robot Build Rating . | . . . Part Schematics Acquired . | . . . Parts Built . | . . . Authchips . | . . . Time . | . . . Total Part Build Rating . | . . . Parts Repaired . | . . . Time . | . . . Parts Recycled . | . . . Recycled Matter . | . . . Retrieved Matter . | . . . Retrieved Components . | . . . Parts Scanalyzed . | . . . Part Schematics Acquired . | . . . Parts Damaged . | . . . Bothacking | -11 -10 -10 ------------ Run | Jun Mat Min Used RIF Installer . | . . . Robots Hacked . | . . . Non-combat . | . . . Combat . | . . . Robot Hacks Applied . | . . . Relay Couplers Released . | . . . Fabnet Peak Effective % . | . . . Robots Rewired . | . . . Allies Hacked . | . . . Hacks Repelled . | . . . Allies | -11 -10 -10 -------- Run | Jun Mat Min Total Allies . | . . . Largest Group . | . . . Highest-Rated Group . | . . . Highest-Rated Ally . | . . . Total Orders . | . . . Ally Attacks . | . . . Total Damage . | . . . Kills . | . . . Allies Corrupted . | . . . Allies Melted . | . . . Intel | -11 -10 -10 ------- Run | Jun Mat Min Robot Analysis Total 2 | . 1 1 Derelict Logs Recovered 1 | . . 1 Drone Launches . | . . . Drone Recoveries . | . . . Exploration | -11 -10 -10 ------------- Run | Jun Mat Min Turns Passed 1644 | 153 859 632 Spaces Moved 1283 | 97 681 505 Core 9 | 9 . . Treads 5 | . . 5 Legs 38 | 38 . . Wheels 1231 | 50 681 500 Hover . | . . . Flight . | . . . Fastest Speed 50 | 50 80 90 Average Speed 104 | 100 104 105 Slowest Speed 190 | 190 115 160 Overloaded Moves . | . . . Propulsion Burnouts . | . . . Robots Hopped . | . . . Cave-ins Triggered . | . . . Exploration Rate (%) 56 | 6 94 70 Regions Visited 2 Branch Regions 1 Pre-discovered Areas 2 | . 1 1 Known Exits Taken . | . . . Unknown Exits Taken 2 | 1 1 . Scrap Searched . | . . . Spaces Dug . | . . . Terrain Destroyed 23 | . . 23 Melee . | . . . Projectile . | . . . AOE 23 | . . 23 Terrain Rammed . | . . . Walls Destroyed . | . . . Machines Disabled . | . . . Actions | -11 -10 -10 --------- Run | Jun Mat Min Total 1459 | 129 770 560 Wait 46 | . 30 16 Move 1281 | 96 680 505 Hop . | . . . Pick Up 23 | 9 13 1 Fast Attach 12 | 9 2 1 Attach 9 | . 4 5 Detach . | . . . Swap 10 | 1 4 5 Drop 13 | 4 6 3 Fire 64 | 10 31 23 Melee . | . . . Ram 1 | . . 1 Kick . | . . . Crush . | . . . Escape Stasis . | . . . Rewire . | . . . Trap . | . . . Miscellaneous . | . . . Route ------- -11/Junkyard -10/Materials (discovered 5 exits: [*Mat x3] / *Min x2) -10/Mines (discovered 2 exits: [*Mat x2]) History --------- Turn | Location | Event 10 | -11/Junkyard | Discovered new exit (range 15) 154 | -11/Junkyard | Entered Materials 313 | -10/Materials | Discovered new exit (range 8) 319 | -10/Materials | Build established: Mutant 458 | -10/Materials | Discovered new exit (range 6) 590 | -10/Materials | Discovered new exit (range 5) 685 | -10/Materials | Build established: Scavenger-Mutant 725 | -10/Materials | Discovered new exit (range 7) 771 | -10/Materials | Central database locked down 894 | -10/Materials | Discovered new exit (range 15) 1013 | -10/Materials | Entered Mines 1031 | -10/Mines | Build established: Mutant 1052 | -10/Mines | Learned location of Storage (-8) 1052 | -10/Mines | Discovered new exit (range 11) 1136 | -10/Mines | Received a Rocket Launcher from a helpful Derelict 1223 | -10/Mines | Learned Materials emergency access door positions 1268 | -10/Mines | Discovered new exit (range 10) 1556 | -10/Mines | Assembled infested the area 1598 | -10/Mines | Core integrity fell below 50% 1619 | -10/Mines | Lost 3 parts (1u2w) 1632 | -10/Mines | Core integrity fell below 20% 1645 | -10/Mines | Destroyed by D-53 Grenadier with Mini Grenade Launcher Last Messages --------------- 01601_ C-30 ARC bursts open, deploying its payload. 01601_ D-53 Grenadier unfolds itself. 01604_ as-06980 destroyed. 01604_ as-33085 destroyed. 01604_ as-75885 destroyed. 01604_ as-90904 destroyed. 01604_ Slammed into R-06 Scavenger. 01611_ Acquired 43 matter. 01627_ EM Pulse Gun destroyed. 01627_ Plasma Injector explodes. 01627_ Terminal disabled. 01627_ Ion Engine destroyed. 01628_ EM Pulse Gun destroyed. 01629_ Wheel destroyed. 01630_ Heat Sink destroyed. 01631_ The unstable cave ceiling collapses. 01632_ D-53 Grenadier destroyed. 01637_ The unstable cave ceiling collapses. 01645_ Lgt. Treads destroyed. 01645_ EM Pulse Gun destroyed. Map ----- +----------------------------------------------------+ | ???????????????#????## ##?#### ## | | ?????????????######### #??????####### ### ### | | ????????#?#??# ### #????????#????# ######?## | | ?????????????# #?####????????#????# #???????? | | ?????????????# #???##?????#??#?#??# ##????### | | ??????????#??# #?##???????????????# #??????? | | ?????????????#""" ##????????#??????#?## #??????? | | ?????????????#""" #??????????#???????## ####???? | | ????????????##""" ##??????????????????# #???? | | ?????#???????#""" ##??????????#?????#?#### #???# | | ?????????????# #???#################### ##### | | ??????#??????# #????# | | ????????????###### ##?#??# | | ????????????#??#?# #?#?#?# ###################### | | ????????#????##### ##???## ##?#?#?#?#??#???##???? | | ?????????###?#" % %#?#?## #??#?##?#???????????? | | ?????##### #%### ###### ##?#?????#?????????#? | | ???### #?# ##??#???#??#???#???#? | | #### %% ######## #????###????????????? | | ###?#?# ##?## ##???#???#???? | | ### #???# #### #???#????#??? | | ?### ### # #?#### ## #??????????## | | ?### % ## ### #??????????## | | ## % # ## ## ###??#????#??# | | ########## # ###?#??????#??# | | ###????#??##### @ #??????#??????## | | ##??#???#?????## d #?????#????????# | | # #???#??#?????# ##??#?????#???## | | #??????#?????## # #?????#??#???## | | % #???#????????### #???????????## | | % ##??#????????#??## ##??????????## | | #% ####?#?????#??????##; #??#?????#### | | #!| ????#??#??????????## # ###?##### | | #!#???#??#???????????#?## ##### | | #!#??????????????????#??## #### ## | | # #?????????????????#????########### ##### | | # #?????????????????????#??#??????# ##???## | | # #?#?????????????????##??????????# ####?????# | | # #?????????????????????????#?????## ##????#???? | | ? ???????????????#?????????????????#####?????????? | | ? ?????????????????????????????????#?????#??#????# | | ? ???????#??????????????????????????????##????#??# | | ? ??#????????????????????????????????????????????# | | ? ?????????????????????????????????????????#?????# | | ? ???????????????????????????????????#####????##?# | | ? ??????????????????????????????????## ##?????#? | | ???????????????????????????????????## =!#????##? | | ??????????????????????????????????## #?????#? | | ??????????????????????????????????# ##????#?? | | ??????????????????????????????????# ######??# | +----------------------------------------------------+ Best States ------------- Heat Dissipation 35 Energy Generation 14 Energy Capacity 250 Matter Stores 300 Matter Capacity 300 Sight Range 16 Terrain Scan Range 16 Terrain Scan Density 10 Evasion (%) 50 Recoil Reduction 2 Item Schematics ----------------- None Robot Schematics ------------------ None Fabricated ------------ Nothing Alien Tech Used ----------------- None Achievements -------------- None Challenges ------------ None Game ------ Seed MappingTachyonExoskeleton Manual? 0 Play Time 00:16:42 Cumulative 639.3 hours Start 2023.04.17 @ 16:58:20 End 2023.04.17 @ 17:16:13 Sessions 1 Manual Loads 0 Difficulty Rogue Special Mode None Game No. 431 Rogue 431 Adventurer 0 Explorer 0 Win Type - Total 1 Types 1/0/0/0/0/0/0/0/0 Lore% 71 Gallery% 79 Achievement% 60 Wizard Run 0 Options --------- ASCII 0 Keyboard 0 Movement Mouse Keybinds 0 Fullscreen 1 Font 16/SmallcapsGlow Map View 75x55 Tactical HUD 1 Map Filters NONE Filters NONE Steam 1 RUN: b6defe3e-daa8-4c8f-86b7-a8f5f639e911